bitfinex/quotes_ETHUSD_20251119
["timestamp","ask_amount","ask_price","bid_price","bid_amount"]
[1763536699315,0.51333995,3059.3,3058.9,0.3417]
[1763536699511,0.81960884,3059.3,3058.9,0.001]
[1763536699711,0.70765307,3059.5,3058.9,0.001]
[1763536699915,0.002,3059.5,3059.4,0.3407]
[1763536700132,0.002,3059.5,3059.4,0.746204]
[1763536700343,0.002,3059.5,3059.4,1.086904]
[1763536700741,0.002,3059.5,3059.4,1.6955944]
[1763536703117,0.51519886,3059.5,3059.4,1.6955944]
[1763536703632,0.51519886,3059.5,3059.4,6.6955944]
[1763536704001,0.51519886,3059.5,3059.4,6.3548944]
[1763536704116,0.002,3059.9,3059.5,0.405504]
[1763536704317,0.002,3059.9,3059.8,0.3407]
[1763536704717,0.002,3059.9,3059.8,0.6814]
[1763536707161,0.002,3059.9,3059.8,1.086904]
[1763536707667,0.002,3059.9,3059.8,6.086904]
[1763536709747,0.51517838,3060.6,3060.2,0.405504]
[1763536710064,0.51517838,3060.6,3060.2,0.746204]
[1763536710223,0.51517838,3060.6,3060.5,0.746204]
[1763536710623,0.51517838,3060.6,3060.5,1.086904]
[1763536711263,0.51517838,3060.6,3060.5,0.3407]
[1763536712891,0.51517838,3060.6,3060.5,0.90884]
[1763536713092,0.002,3060.6,3060.5,0.90884]
[1763536713660,0.002,3060.6,3060.5,0.3407]
[1763536714557,0.002,3060.6,3060.5,0.37337439]
[1763536714954,0.002,3060.6,3060.1,5.1552]
[1763536714955,0.4652,3060.6,3060.2,3.5118663]
[1763536715159,0.002,3060.6,3060.2,3.5118663]
[1763536715382,0.002,3060.6,3060.3,0.90077663]
[1763536716892,0.002,3060.6,3060.5,0.3407]
[1763536717087,0.002,3060.6,3060.5,0.6814]
[1763536717533,0.002,3060.6,3060.5,0.3407]
[1763536717988,0.002,3060.6,3060.5,0.6814]
[1763536718319,0.002,3060.6,3060.5,1.37229205]
[1763536718681,0.002,3060.6,3060.5,5.25698796]
[1763536719522,0.002,3060.6,3060.5,10.28966235]
[1763536719694,0.002,3060.6,3060.5,10.25698796]
[1763536721099,0.002,3060.6,3060.5,6.74512166]
[1763536724788,0.4865,3060.6,3060.5,5.65821766]
[1763536725104,0.9625,3060.6,3060.5,5.0]
[1763536725604,0.9625,3060.6,3060.3,0.001]
[1763536725807,0.4845,3060.4,3060.3,0.001]
[1763536726315,0.9605,3060.4,3060.3,0.001]
[1763536729305,1.26594409,3060.4,3060.3,0.001]
[1763536729540,2.87549104,3060.4,3059.9,0.001]
[1763536729754,0.4845,3060.0,3059.9,0.001]
[1763536730197,0.9605,3060.0,3059.9,0.001]
[1763536732115,1.47375871,3060.0,3059.9,0.001]
[1763536732319,0.9605,3060.0,3059.9,0.001]
[1763536735398,1.47373506,3060.0,3059.9,0.001]
[1763536737227,0.99773506,3060.0,3059.9,0.001]
[1763536737938,1.47373506,3060.0,3059.9,0.001]
[1763536741348,1.47373506,3060.0,3059.6,0.001]
[1763536741349,8.39601949,3060.0,3059.6,0.001]
[1763536741511,0.4845,3059.7,3059.1,0.001]
[1763536741708,0.90699264,3059.1,3058.9,0.001]
[1763536741935,0.90699264,3059.1,3058.7,0.001]
[1763536741936,0.4845,3059.0,3058.7,0.001]
[1763536742111,0.5224,3058.9,3058.7,0.001]
[1763536742555,0.4845,3058.3,3057.1,5.0]
[1763536742720,7.58798443,3057.9,3057.1,5.0]
[1763536742919,0.90699264,3057.8,3057.1,5.0]
[1763536743124,0.4845,3057.5,3057.1,5.0]
[1763536743621,0.9605,3057.5,3056.7,0.001]
[1763536744617,0.6572,3057.9,3057.1,0.0977]
[1763536744811,0.4845,3057.5,3057.1,0.0977]
[1763536745375,0.1812,3058.1,3057.4,0.3477]
[1763536745771,0.51364051,3057.5,3057.4,0.3477]
[1763536746078,0.1812,3058.1,3057.4,0.3477]
[1763536746278,0.51361916,3057.7,3057.4,0.6944]
[1763536746476,0.1812,3058.3,3057.6,0.3467]
[1763536747038,0.1812,3058.3,3057.4,0.001]
[1763536747039,0.4505,3057.7,3057.4,0.001]
[1763536748184,0.9476,3057.7,3057.4,0.001]
[1763536748346,7.37278443,3057.5,3057.4,0.001]
[1763536748659,1.35749264,3057.5,3057.4,0.001]
[1763536749035,1.85459264,3057.5,3057.4,0.001]
[1763536749362,1.87119734,3057.5,3057.4,0.001]
[1763536749859,1.42069734,3057.5,3057.4,0.001]
[1763536750063,1.87119734,3057.5,3057.4,0.001]
[1763536750444,0.90699264,3057.5,3057.4,0.001]
[1763536752775,0.1812,3058.3,3057.4,0.001]
[1763536752776,0.6783,3058.3,3057.4,0.3477]
[1763536752977,0.6783,3058.3,3057.4,0.001]
[1763536753285,0.4505,3057.5,3057.4,0.001]
[1763536753441,0.4505,3057.5,3057.4,3.5128663]
[1763536753640,0.4971,3057.9,3057.4,3.5128663]
[1763536754150,0.4971,3057.9,3057.4,0.001]
[1763536754351,0.4505,3057.5,3057.4,0.001]
[1763536754556,0.4971,3057.9,3057.4,0.001]
[1763536754942,0.4505,3057.5,3057.4,0.001]
[1763536758559,0.4971,3057.9,3057.4,0.001]
[1763536759277,0.4971,3058.2,3057.4,0.001]
[1763536759977,0.002,3058.1,3057.4,0.001]
[1763536760988,0.4971,3058.0,3057.4,0.001]
[1763536763892,0.51363633,3057.9,3057.4,0.001]
[1763536764061,0.4664,3057.5,3057.4,0.001]
[1763536764261,0.4664,3057.5,3057.4,3.5128663]
[1763536764556,0.4973,3057.8,3057.4,3.5128663]
[1763536764886,0.002,3058.1,3057.4,3.5128663]
[1763536765261,0.4993,3058.1,3057.4,3.5128663]
[1763536765988,0.002,3058.1,3057.4,3.8595663]
[1763536766290,0.4973,3058.0,3057.4,3.89882293]
[1763536767392,0.51362802,3057.9,3057.4,3.89882293]
[1763536768182,1.01092802,3057.9,3057.5,3.5118663]
[1763536769487,0.70544328,3057.8,3057.5,3.5118663]
[1763536769872,0.70544328,3058.0,3057.7,0.3467]
[1763536770098,0.002,3058.1,3058.0,0.3467]
[1763536770589,0.002,3058.1,3058.0,0.6934]
[1763536770999,0.002,3058.1,3058.0,1.098904]
[1763536772315,0.002,3058.1,3058.0,0.752204]
[1763536773186,0.002,3058.1,3058.0,0.3467]
[1763536773370,0.002,3058.1,3057.8,0.405504]
[1763536773570,0.002,3058.1,3057.8,0.79724103]
[1763536774417,0.002,3058.1,3058.0,0.3467]
[1763536775097,0.002,3058.1,3057.8,0.405504]
[1763536775613,0.002,3058.1,3058.0,0.3467]
[1763536777518,0.002,3058.1,3058.0,3.8585663]
[1763536777817,0.002,3058.1,3058.0,4.72514733]
[1763536778019,0.002,3058.1,3058.0,5.07184733]
[1763536778384,0.002,3058.1,3058.0,4.72514733]
[1763536782023,0.9292,3058.1,3058.0,3.5118663]
[1763536783202,1.44278477,3058.1,3058.0,3.5118663]
[1763536783526,1.44278477,3058.1,3058.0,3.4941463]
[1763536783700,0.9292,3058.1,3058.0,3.4941463]
[1763536784438,0.4653,3058.1,3058.0,3.4941463]
[1763536785131,0.002,3058.1,3058.0,3.8408463]
[1763536785429,0.002,3058.1,3058.0,0.3467]
[1763536786814,0.97883948,3058.1,3057.6,0.405504]
[1763536787012,0.97883948,3058.1,3057.6,1.33023903]
[1763536787230,0.4639,3058.0,3057.6,0.405504]
[1763536787528,0.97883948,3058.1,3057.6,0.405504]
[1763536787721,0.51553948,3058.1,3057.6,0.405504]
[1763536788124,0.51553948,3058.1,3057.6,0.752204]
[1763536788302,0.51553948,3058.1,3057.6,1.17693903]
[1763536788927,0.51553948,3058.1,3057.7,3.4941463]
[1763536790301,0.97943948,3058.1,3057.7,3.4941463]
[1763536790503,0.51553948,3058.1,3057.7,3.4941463]
[1763536790708,0.51553948,3058.1,3057.8,0.405504]
[1763536791438,0.51553948,3058.1,3057.7,3.4941463]
[1763536793252,0.51553948,3058.1,3057.7,3.96125483]
[1763536793942,0.51553948,3058.1,3058.0,0.3467]
[1763536794644,0.51553948,3058.1,3058.0,0.752204]
[1763536794860,0.51553948,3058.1,3058.0,3.4941463]
[1763536795349,0.51553948,3058.1,3057.6,0.001]
[1763536795350,1.44273948,3058.1,3057.6,0.001]
[1763536795518,1.44273948,3058.1,3057.6,0.406504]
[1763536795709,0.4639,3058.0,3057.6,0.001]
[1763536797249,0.4633,3057.7,3057.6,0.001]
[1763536797637,0.9272,3057.7,3057.6,0.001]
[1763536798013,0.4633,3057.7,3057.6,0.001]
[1763536798255,0.1993,3057.9,3057.6,0.3477]
[1763536798429,0.30892937,3058.1,3057.6,0.3477]
[1763536798841,0.002,3058.1,3057.6,0.3477]
[1763536799023,0.4659,3058.1,3057.6,0.3477]
[1763536799556,0.002,3058.1,3057.6,0.6944]
[1763536800356,0.002,3058.1,3057.6,0.3477]
[1763536800522,0.4639,3058.0,3057.6,0.3477]
[1763536800852,0.4639,3058.0,3057.6,0.001]
[1763536801020,0.4633,3057.7,3057.6,0.001]
[1763536801559,0.9272,3057.7,3057.6,0.001]
[1763536801772,0.4633,3057.4,3056.5,5.0]
[1763536802054,0.4633,3057.1,3056.5,5.0]
[1763536802228,0.77020496,3057.1,3056.5,5.0]
[1763536802441,1.23410496,3057.1,3056.5,5.0]
[1763536802655,1.23410496,3057.1,3055.1,0.03273215]
[1763536802656,1.94115732,3057.1,3055.9,0.3497]
[1763536802822,1.94115732,3057.1,3055.6,5.0]
[1763536802823,1.23410496,3057.1,3055.6,5.3497]
[1763536803539,1.94115732,3057.1,3055.6,0.3497]
[1763536803740,1.23410496,3057.1,3055.6,0.3497]
[1763536804528,1.23410496,3057.1,3055.9,0.405504]
[1763536804853,9.07445083,3057.1,3055.3,0.3497]
[1763536805159,9.07445083,3057.1,3055.1,5.0]
[1763536805160,0.90699264,3057.0,3055.1,5.0]
[1763536805319,0.5673,3056.8,3055.1,5.0]
[1763536805543,0.4633,3056.5,3055.0,0.3497]
[1763536805740,0.4633,3056.5,3055.1,0.03273215]
[1763536805939,0.9272,3056.5,3055.5,0.3497]
[1763536806170,0.9272,3056.5,3054.9,0.4434]
[1763536806372,0.9272,3056.5,3055.2,0.3497]
[1763536806576,0.9272,3056.5,3055.4,0.3497]
[1763536806880,0.9272,3056.5,3055.5,0.405504]
[1763536808477,0.4633,3056.5,3056.1,0.1582]
[1763536809573,0.9566,3056.5,3055.9,0.1582]
[1763536809978,0.4633,3056.5,3055.9,0.1582]
[1763536810492,7.38705768,3057.7,3056.4,0.3507]
[1763536810782,0.51379199,3056.5,3056.4,0.3507]
[1763536810943,0.4933,3057.2,3056.4,0.3507]
[1763536811343,0.002,3056.7,3056.4,0.3507]
[1763536811561,0.002,3056.7,3056.4,0.7004]
[1763536811779,0.002,3056.7,3056.6,0.3497]
[1763536811945,0.002,3056.7,3056.6,0.38241608]
[1763536812145,0.002,3056.7,3056.6,1.13762008]
[1763536812545,0.002,3056.7,3056.6,1.104904]
[1763536812773,0.002,3056.7,3056.6,1.7154944]
[1763536812974,0.002,3056.7,3056.6,1.74821048]
[1763536813547,0.002,3056.7,3056.6,1.7154944]
[1763536813790,0.002,3056.7,3056.6,1.74821048]
[1763536814100,0.51565954,3056.7,3056.6,1.74821048]
[1763536814248,0.002,3057.1,3056.7,0.405504]
[1763536814445,0.002,3057.1,3057.0,0.755204]
[1763536814753,0.002,3057.4,3057.1,0.405504]
[1763536815066,0.002,3057.4,3057.3,0.4474]
[1763536815245,0.002,3057.4,3057.3,0.7971]
[1763536815446,0.002,3057.4,3057.3,1.202604]
[1763536816673,0.002,3057.4,3057.3,6.202604]
[1763536816979,0.002,3057.4,3057.3,6.0676604]
[1763536817202,0.4957,3057.4,3057.3,5.0]
[1763536817551,0.4957,3057.4,3056.9,0.0977]
[1763536817762,0.51567914,3057.4,3056.9,0.0977]
[1763536818360,1.00897914,3057.4,3056.6,0.405504]
[1763536818578,1.00897914,3057.4,3056.6,0.5406504]
[1763536818778,0.4933,3057.3,3056.2,5.0]
[1763536819070,0.51567914,3057.4,3056.2,5.0]
[1763536819071,0.51567914,3057.4,3056.4,0.38341823]
[1763536819254,0.51567914,3057.4,3056.5,0.405504]
[1763536819459,0.51567914,3057.4,3056.6,0.03271608]
[1763536819665,0.51567914,3057.4,3056.7,0.405504]
[1763536820275,0.51567914,3057.4,3056.8,0.3497]
[1763536820477,0.51567914,3057.4,3056.6,0.03271608]
[1763536820478,0.51567914,3057.4,3056.9,3.4941463]
[1763536820780,0.51567914,3057.4,3056.9,3.84356093]
[1763536821677,1.00897914,3057.4,3056.9,3.84356093]
[1763536822249,1.00897914,3057.4,3057.0,3.4941463]
[1763536822462,0.4933,3057.3,3057.0,3.4941463]
[1763536822868,0.51567914,3057.4,3057.0,3.4941463]
[1763536823080,0.51567914,3057.4,3057.1,0.0977]
[1763536823256,0.51567914,3057.4,3057.0,3.87850239]
[1763536823461,0.96657914,3057.4,3057.0,0.38435609]
[1763536823771,0.96657914,3057.4,3056.8,0.0977]
[1763536824781,0.51567914,3057.4,3056.9,0.405504]
[1763536825454,0.96657914,3057.4,3056.9,0.405504]
[1763536825654,0.51567914,3057.4,3056.9,0.405504]
[1763536825866,0.51567914,3057.4,3057.0,0.3497]
[1763536826362,0.51567914,3057.4,3056.9,0.405504]
[1763536827176,0.96657914,3057.4,3056.9,0.405504]
[1763536827374,0.96657914,3057.4,3056.9,0.84020903]
[1763536827578,0.96657914,3057.4,3056.9,4.33435533]
[1763536827973,0.4509,3057.3,3056.9,4.33435533]
[1763536828183,0.51567914,3057.4,3056.9,4.33435533]
[1763536828485,0.4509,3057.3,3056.9,4.33435533]
[1763536828686,0.4688,3057.0,3056.9,4.33435533]
[1763536828858,0.4509,3057.3,3056.9,4.33435533]
[1763536829185,0.002,3057.4,3056.9,4.68405533]
[1763536829376,0.51369731,3057.3,3057.0,0.46840553]
[1763536829988,0.51369731,3057.3,3057.1,3.4941463]
[1763536830696,0.51369731,3057.3,3057.2,3.9415463]
[1763536831256,0.4688,3057.3,3057.2,3.4941463]
[1763536831892,0.002,3057.4,3057.2,3.4941463]
[1763536832187,0.4688,3057.3,3057.2,3.4941463]
[1763536832380,0.002,3057.4,3057.2,3.4941463]
[1763536832781,0.4688,3057.3,3057.2,3.4941463]
[1763536833758,0.9197,3057.3,3057.2,3.4941463]
[1763536836496,0.9197,3057.3,3057.0,3.4941463]
[1763536836692,0.4554,3057.2,3057.0,3.4941463]
[1763536836901,0.4647,3057.1,3057.0,3.4941463]
[1763536837285,0.9201,3057.1,3057.0,3.4941463]
[1763536839401,0.4647,3057.1,3057.0,3.4941463]
[1763536839602,0.002,3057.4,3057.0,4.19336093]
[1763536839806,0.002,3057.4,3057.0,3.8438463]
[1763536840293,0.4574,3057.4,3057.0,3.4941463]
[1763536842211,0.4647,3057.1,3057.0,3.4941463]
[1763536842782,0.002,3057.4,3057.0,3.4941463]
[1763536843101,0.4554,3057.3,3057.0,3.4941463]
[1763536843877,0.4647,3057.1,3057.0,3.4941463]
[1763536844804,0.97841231,3057.1,3057.0,3.4941463]
[1763536844998,0.4647,3057.1,3057.0,3.4941463]
[1763536845811,0.4554,3057.3,3057.0,3.4941463]
[1763536846505,0.4554,3057.3,3057.0,3.4951463]
[1763536846710,0.4574,3057.3,3057.0,3.4951463]
[1763536846883,0.002,3057.3,3057.0,3.4951463]
[1763536848097,0.51570834,3057.3,3057.0,3.4951463]
[1763536848277,0.51570834,3057.3,3057.1,3.4941463]
[1763536849316,0.002,3057.3,3057.1,3.4941463]
[1763536850413,0.002,3057.3,3057.2,0.3497]
[1763536851515,0.002,3057.3,3057.1,3.84376093]
[1763536854203,0.002,3057.3,3057.2,3.4941463]
[1763536854991,0.002,3057.3,3057.2,3.8438463]
[1763536855715,0.002,3057.3,3057.2,3.4941463]
[1763536855898,0.002,3057.3,3057.2,4.23809239]
[1763536857628,0.002,3057.3,3057.2,4.99329639]
[1763536859015,0.002,3057.3,3057.2,4.64359639]
[1763536861529,0.4667,3057.3,3057.2,3.4941463]
[1763536861727,0.002,3057.3,3057.2,3.8438463]
[1763536862725,0.51564845,3057.3,3057.2,3.4941463]
[1763536862927,0.9221,3057.3,3057.2,3.4941463]
[1763536864098,0.002,3057.3,3057.2,3.4941463]
[1763536864295,0.4667,3057.3,3057.2,3.4941463]
[1763536864710,0.9221,3057.3,3057.2,3.4941463]
[1763536864912,0.002,3057.3,3057.2,3.4941463]
[1763536865927,0.51568495,3057.3,3057.2,3.4941463]
[1763536867010,1.47698495,3057.3,3057.2,3.4941463]
[1763536867518,0.97928495,3057.3,3057.2,3.4941463]
[1763536868911,1.47698495,3057.3,3057.2,3.4941463]
[1763536869113,1.47698495,3057.3,3057.0,0.001]
[1763536869310,0.4636,3057.1,3057.0,0.001]
[1763536870431,0.9613,3057.1,3057.0,0.001]
[1763536873319,1.09252347,3057.1,3057.0,0.001]
[1763536874538,0.59482347,3057.1,3057.0,0.001]
[1763536875415,0.13122347,3057.1,3057.0,0.001]
[1763536875740,1.09252347,3057.1,3057.0,0.001]
[1763536876122,0.13122347,3057.1,3057.0,0.001]
[1763536877035,0.59482347,3057.1,3057.0,0.001]
[1763536879213,1.09252347,3057.1,3057.0,0.001]
[1763536879821,0.59482347,3057.1,3057.0,0.001]
[1763536880140,1.09252347,3057.1,3057.0,0.001]
[1763536882864,5.81701345,3057.1,3057.0,0.001]
[1763536884031,7.00475135,3057.1,3057.0,0.001]
[1763536884378,7.71167611,3057.1,3057.0,0.001]
[1763536884726,2.98718613,3057.1,3057.0,0.001]
[1763536884930,7.24007611,3057.1,3057.0,0.001]
[1763536885363,7.71167611,3057.1,3057.0,0.001]
[1763536886256,7.24007611,3057.1,3057.0,0.001]
[1763536886426,6.33308347,3057.1,3057.0,0.001]
[1763536886632,5.18808998,3057.1,3057.0,0.001]
[1763536886948,5.18808998,3057.1,3057.0,3.4951463]
[1763536888962,0.4636,3057.1,3057.0,3.4951463]
[1763536889159,0.986189,3057.3,3057.0,3.8448463]
[1763536889359,1.89318164,3057.3,3057.1,0.3497]
[1763536889562,0.002,3057.3,3057.2,0.4474]
[1763536889764,0.002,3057.3,3057.2,0.7971]
[1763536889936,0.002,3057.3,3057.2,0.4474]
[1763536890138,0.51569259,3057.3,3057.2,0.4474]
[1763536890362,0.002,3057.3,3057.2,0.4474]
[1763536891668,0.002,3057.3,3057.2,0.7971]
[1763536893462,0.51565056,3057.3,3057.2,0.7971]
[1763536894040,0.51565056,3057.3,3057.2,1.202604]
[1763536895142,0.51565056,3057.3,3057.2,4.6967503]
[1763536895342,0.51565056,3057.3,3057.2,5.16652533]
[1763536896571,0.002,3057.3,3057.2,5.16652533]
[1763536897478,0.002,3057.3,3057.2,5.19923499]
[1763536897650,0.002,3057.3,3057.2,5.16652533]
[1763536897851,0.002,3057.3,3057.2,1.67237903]
[1763536905481,0.002,3057.3,3057.2,1.26687503]
[1763536905684,0.002,3057.3,3057.2,6.07351797]
[1763536905890,0.002,3057.3,3057.2,6.10622763]
[1763536906754,0.002,3057.3,3057.2,11.10622763]
[1763536906950,0.002,3057.3,3057.2,11.07351797]
[1763536908001,0.002,3057.3,3057.2,9.41132133]
[1763536908200,0.002,3057.3,3057.2,9.31362133]
[1763536908683,0.002,3057.3,3057.2,4.66332133]
[1763536909990,0.002,3057.3,3057.2,5.06882533]
[1763536911703,0.002,3057.3,3057.2,10.06882533]
[1763536913081,0.002,3057.7,3057.2,10.06882533]
[1763536913271,0.002,3057.8,3057.7,3.4881463]
[1763536913604,0.51559162,3057.8,3057.7,3.4881463]
[1763536913799,0.99119162,3057.8,3057.7,3.4881463]
[1763536915797,0.51559162,3057.8,3057.7,3.4881463]
[1763536920037,0.51559162,3057.8,3057.7,4.5930503]
[1763536920191,0.51559162,3057.8,3057.7,5.05235533]
[1763536920392,0.002,3057.8,3057.7,5.05235533]
[1763536921098,0.4776,3057.8,3057.7,3.94745133]
[1763536921307,0.949,3057.8,3057.7,3.4881463]
[1763536921492,0.002,3057.8,3057.7,3.8378463]
[1763536921942,0.002,3057.8,3057.7,4.1875463]
[1763536923604,0.002,3057.8,3057.7,4.22025062]
[1763536923806,0.51556024,3057.8,3057.7,5.14227568]
[1763536923997,0.51556024,3057.8,3057.7,5.10957136]
[1763536925510,0.002,3058.2,3058.1,2.96858606]
[1763536925736,0.4734,3058.2,3058.1,2.96858606]
[1763536925937,0.949,3058.2,3058.1,2.96858606]
[1763536926143,1.46256926,3058.2,3058.1,2.96858606]
[1763536926524,2.47699671,3058.2,3058.1,2.96858606]
[1763536927224,2.47699671,3058.2,3057.3,2.96858606]
[1763536927423,4.83205016,3057.9,3057.3,3.82219217]
[1763536927623,1.40099264,3058.1,3057.3,3.82219217]
[1763536927944,0.1876,3057.8,3057.3,2.96858606]
[1763536928710,0.51556926,3058.2,3057.7,0.3497]
[1763536928909,1.00956926,3058.2,3057.7,0.3497]
[1763536929115,0.51556926,3058.2,3057.7,0.3497]
[1763536929343,0.51556926,3058.2,3057.8,2.96858606]
[1763536929544,0.51556926,3058.2,3057.9,0.33182861]
[1763536929934,0.51556926,3058.2,3058.0,2.96858606]
[1763536930314,0.51556926,3058.2,3058.1,3.31828606]
[1763536931438,0.51556926,3058.2,3058.1,3.41198606]
[1763536931948,0.51556926,3058.2,3058.1,3.76168606]
[1763536932245,0.51556926,3058.2,3058.1,4.17430775]
[1763536933474,0.51556926,3058.2,3058.1,5.51950443]
[1763536933770,0.51556926,3058.2,3058.1,10.48680439]
[1763536934259,0.002,3058.2,3058.1,10.48680439]
[1763536937567,0.51542698,3058.2,3058.1,10.48680439]
[1763536940058,0.51542698,3058.2,3058.1,10.13710439]
[1763536940361,0.51542698,3058.2,3058.1,8.31828606]
[1763536940690,1.46062698,3058.2,3057.9,0.001]
[1763536940860,5.28325016,3058.0,3057.9,0.001]
[1763536941248,0.9452,3058.0,3057.9,0.001]
[1763536941674,0.4512,3058.0,3057.9,0.001]
[1763536941837,0.9452,3058.0,3057.9,0.001]
[1763536942042,0.51542698,3058.2,3057.9,0.001]
[1763536942239,0.4512,3058.0,3057.9,0.001]
[1763536942662,0.9452,3058.0,3057.9,0.001]
[1763536945373,0.4857,3058.0,3057.9,0.001]
[1763536945680,0.9808,3058.0,3057.9,0.001]
[1763536946347,0.9808,3058.0,3057.9,2.96958606]
[1763536957169,0.002,3058.2,3057.9,3.26654467]
[1763536957495,0.4687,3058.2,3057.9,3.26654467]
[1763536957996,0.4666,3058.0,3057.9,2.96958606]
[1763536958378,0.9333,3058.0,3057.9,2.96958606]
[1763536960866,0.4666,3058.0,3057.9,2.96958606]
[1763536961070,0.4666,3058.0,3057.9,0.001]
[1763536961270,0.4687,3058.2,3057.9,0.001]
[1763536961672,0.002,3058.2,3057.9,0.001]
[1763536961905,0.4687,3058.2,3057.9,0.001]
[1763536963392,0.4666,3058.0,3057.9,0.001]
[1763536963573,0.4687,3058.2,3057.9,0.001]
[1763536964004,0.002,3058.2,3058.1,0.4434]
[1763536964199,0.002,3058.2,3057.9,0.001]
[1763536964394,0.4687,3058.2,3057.9,0.33850901]
[1763536964595,0.002,3058.2,3057.9,0.33850901]
[1763536966178,0.002,3058.2,3058.1,0.3497]
[1763536967676,0.002,3058.2,3058.1,0.4434]
[1763536967872,0.4686,3058.2,3057.9,0.33850901]
[1763536968091,0.9353,3058.2,3057.9,0.33850901]
[1763536969721,0.9353,3058.2,3058.0,2.96858606]
[1763536970210,0.4666,3058.1,3058.0,2.96858606]
[1763536972028,0.002,3058.2,3058.0,3.31828606]
[1763536972324,0.002,3058.2,3058.1,9.25147811]
[1763536972546,0.002,3058.2,3058.1,4.16719006]
[1763536973049,0.002,3058.2,3058.1,4.1998901]
[1763536974498,0.002,3058.2,3058.1,9.1998901]
[1763536974715,0.002,3058.2,3058.1,9.16719006]
[1763536974912,0.002,3058.2,3058.1,10.08400907]
[1763536975636,0.002,3058.2,3058.1,5.08400907]
[1763536976321,0.002,3058.2,3058.1,3.88540507]
[1763536976499,0.002,3058.2,3058.1,4.23510507]
[1763536977401,0.002,3058.2,3058.1,3.88540507]
[1763536978030,0.002,3058.2,3058.1,2.96858606]
[1763536978237,0.002,3058.2,3058.1,3.41198606]
[1763536978439,0.002,3058.2,3058.1,3.76168606]
[1763536978845,0.002,3058.2,3058.1,8.88684946]
[1763536979006,0.002,3058.5,3058.2,0.405504]
[1763536979349,0.002,3058.8,3058.6,3.859504]
[1763536979645,0.002,3058.8,3058.7,4.207204]
[1763536979844,0.002,3058.8,3058.7,4.554904]
[1763536980043,0.002,3058.9,3058.7,4.554904]
[1763536980335,0.4667,3060.5,3059.4,0.405504]
[1763536980635,0.77270203,3060.5,3059.5,0.51251634]
[1763536980810,0.77270203,3060.5,3059.6,0.405504]
[1763536980811,0.4667,3060.5,3059.6,0.405504]
[1763536981713,0.002,3060.6,3059.6,0.405504]
[1763536981909,0.4687,3060.3,3059.6,0.405504]
[1763536982438,0.4687,3060.3,3060.2,0.3477]
[1763536982439,0.002,3060.3,3060.2,0.3477]
[1763536983715,0.002,3060.3,3060.1,5.0]
[1763536983923,0.002,3060.3,3060.1,5.53477]
[1763536984736,0.002,3060.3,3060.2,0.3477]
[1763536984938,0.002,3060.3,3060.2,1.100904]
[1763536985238,0.002,3060.3,3060.2,0.753204]
[1763536986037,0.002,3060.3,3060.2,3.72179006]
[1763536986357,0.002,3060.3,3060.2,4.64744607]
[1763536988144,0.002,3060.3,3060.2,2.02656001]
[1763536988522,0.002,3060.3,3060.2,7.02656001]
[1763536990850,0.002,3060.3,3060.2,7.93355265]
[1763536992829,0.002,3060.3,3060.2,11.38755265]
[1763536994468,0.002,3060.3,3060.2,7.58585265]
[1763536994635,0.002,3060.3,3060.2,6.67886001]
[1763536995265,0.002,3060.3,3060.2,7.02656001]
[1763536996535,0.002,3060.3,3060.2,7.93355265]
[1763536996751,0.002,3060.3,3060.2,10.90213871]
[1763536997529,0.002,3060.3,3060.2,14.35613871]
[1763536999266,0.002,3060.3,3060.2,10.55443871]
[1763536999455,0.002,3060.3,3060.2,10.20673871]
[1763536999660,0.002,3060.3,3060.2,10.55443871]
[1763537000165,0.4628,3060.3,3060.2,10.20673871]
[1763537001064,0.002,3060.3,3060.2,10.20673871]
[1763537001245,0.002,3060.3,3060.2,10.55443871]
[1763537001763,0.002,3060.3,3060.2,9.29974607]
[1763537001964,0.002,3060.3,3060.2,9.64744607]
[1763537002559,0.002,3060.3,3060.2,9.29974607]
[1763537002869,0.002,3060.3,3060.2,6.33116001]
[1763537003470,0.4925,3060.3,3060.2,6.33116001]
[1763537003632,0.4925,3060.3,3060.2,1.33116001]
[1763537004872,0.4925,3060.3,3060.2,5.405504]
[1763537005249,0.002,3060.3,3060.2,5.405504]
[1763537005645,0.002,3060.3,3060.2,5.753204]
[1763537007258,0.002,3060.3,3060.2,7.00789664]
[1763537007562,0.002,3060.3,3060.2,10.46189664]
[1763537007750,0.002,3060.3,3060.2,11.5080863]
[1763537008647,0.5002,3061.2,3061.0,2.95858606]
[1763537008648,0.002,3061.2,3061.0,2.95858606]
[1763537008965,0.5002,3061.2,3061.0,2.95858606]
[1763537009159,0.002,3061.2,3061.0,3.36409006]
[1763537009560,0.4905,3061.1,3061.0,3.36409006]
[1763537009763,0.4905,3061.1,3061.0,2.95858606]
[1763537010072,0.4905,3061.1,3061.0,3.25444467]
[1763537010240,0.9887,3061.1,3061.0,3.25444467]
[1763537010441,0.002,3061.2,3061.0,3.25444467]
[1763537010641,0.002,3061.2,3061.0,0.29585861]
[1763537010862,0.002,3061.2,3061.1,0.78587199]
[1763537011061,0.002,3061.2,3061.1,0.88357199]
[1763537011449,0.002,3061.2,3061.1,1.47238431]
[1763537011665,0.002,3061.2,3061.1,7.37937695]
[1763537011974,0.002,3061.2,3061.1,7.69440896]
[1763537012475,0.002,3061.2,3061.1,11.14840896]
[1763537012774,0.002,3061.2,3061.1,7.69440896]
[1763537022262,0.002,3061.6,3061.3,0.405504]
[1763537022572,0.002,3061.6,3061.2,1.60239264]
[1763537022573,0.002,3061.9,3061.7,3.859504]
[1763537022773,0.002,3061.9,3061.4,0.58115445]
[1763537022774,0.002,3061.9,3061.8,11.63333048]